[Event "Early-Titled-Tuesday-Blitz-June-18-2024"]
[Site "Chess.com"]
[Date "2024.06.18"]
[Round "5"]
[White "TheBigBoss04"]
[Black "Shuvalov"]
[Result "1-0"]
[WhiteElo "2809"]
[BlackElo "2607"]
[TimeControl "180+1"]
[EndTime "8:58:54 PDT"]
[Termination "TheBigBoss04 won by checkmate"]

1. Nf3 {[%clk 0:02:45.8]} 1... Nf6 {[%clk 0:02:59.7]} 2. d4 {[%clk 0:02:36]}
2... g6 {[%clk 0:02:59.4]} 3. Nc3 {[%clk 0:02:31]} 3... Bg7 {[%clk 0:02:58.5]}
4. e4 {[%clk 0:02:27.7]} 4... d5 {[%clk 0:02:58.6]} 5. Bd3 {[%clk 0:02:18.6]}
5... dxe4 {[%clk 0:02:58.2]} 6. Nxe4 {[%clk 0:02:18.2]} 6... Nxe4 {[%clk
0:02:50.5]} 7. Bxe4 {[%clk 0:02:16.9]} 7... c5 {[%clk 0:02:50.8]} 8. dxc5 {[%clk
0:02:08]} 8... Qa5+ {[%clk 0:02:49]} 9. c3 {[%clk 0:02:05.8]} 9... Qxc5 {[%clk
0:02:49.1]} 10. Be3 {[%clk 0:02:02.6]} 10... Qc7 {[%clk 0:02:48.7]} 11. Bd4
{[%clk 0:02:01.2]} 11... e5 {[%clk 0:02:37.8]} 12. Be3 {[%clk 0:01:49.6]} 12...
O-O {[%clk 0:02:37.5]} 13. O-O {[%clk 0:01:40.5]} 13... Nc6 {[%clk 0:02:35.8]}
14. h3 {[%clk 0:01:38.1]} 14... Be6 {[%clk 0:02:28.4]} 15. Ng5 {[%clk
0:01:35.8]} 15... Bc4 {[%clk 0:02:27.9]} 16. Re1 {[%clk 0:01:33.8]} 16... h6
{[%clk 0:02:22.5]} 17. Nf3 {[%clk 0:01:33.8]} 17... Rad8 {[%clk 0:02:15.2]} 18.
Qa4 {[%clk 0:01:31.9]} 18... Bd5 {[%clk 0:02:06.5]} 19. Bxd5 {[%clk 0:01:25.9]}
19... Rxd5 {[%clk 0:02:07.4]} 20. Rad1 {[%clk 0:01:25.1]} 20... Rfd8 {[%clk
0:02:06.7]} 21. Rxd5 {[%clk 0:01:22.9]} 21... Rxd5 {[%clk 0:02:07.6]} 22. Qc4
{[%clk 0:01:09.5]} 22... Qd7 {[%clk 0:02:02]} 23. h4 {[%clk 0:00:34.5]} 23...
Rd1 {[%clk 0:01:57.6]} 24. Qe2 {[%clk 0:00:30.9]} 24... Rxe1+ {[%clk 0:01:56.6]}
25. Qxe1 {[%clk 0:00:31.8]} 25... Qd3 {[%clk 0:01:54]} 26. Qc1 {[%clk
0:00:19.1]} 26... Kh7 {[%clk 0:01:50.8]} 27. Ne1 {[%clk 0:00:18.6]} 27... Qe2
{[%clk 0:01:47.5]} 28. Qd2 {[%clk 0:00:17.5]} 28... Qxd2 {[%clk 0:01:47.4]} 29.
Bxd2 {[%clk 0:00:17.4]} 29... e4 {[%clk 0:01:47.1]} 30. f3 {[%clk 0:00:15.8]}
30... exf3 {[%clk 0:01:41.3]} 31. Nxf3 {[%clk 0:00:16.7]} 31... f5 {[%clk
0:01:38.1]} 32. Kf2 {[%clk 0:00:14.1]} 32... Kg8 {[%clk 0:01:37.7]} 33. Ke3
{[%clk 0:00:11.4]} 33... Kf7 {[%clk 0:01:37.5]} 34. Kd3 {[%clk 0:00:11.7]} 34...
Ke6 {[%clk 0:01:37.3]} 35. Kc4 {[%clk 0:00:11.1]} 35... Ne5+ {[%clk 0:01:27.1]}
36. Nxe5 {[%clk 0:00:11]} 36... Kxe5 {[%clk 0:01:28]} 37. Be3 {[%clk 0:00:08.6]}
37... Ke4 {[%clk 0:01:23.6]} 38. Bxa7 {[%clk 0:00:08.7]} 38... Bf6 {[%clk
0:01:22.9]} 39. Bf2 {[%clk 0:00:06.5]} 39... f4 {[%clk 0:01:20.9]} 40. a4 {[%clk
0:00:06.2]} 40... f3 {[%clk 0:01:20]} 41. g3 {[%clk 0:00:04.2]} 41... Kf5 {[%clk
0:01:09.7]} 42. Kd3 {[%clk 0:00:04.4]} 42... Kg4 {[%clk 0:01:09.8]} 43. Ke4
{[%clk 0:00:04.9]} 43... Bd8 {[%clk 0:01:07.9]} 44. b4 {[%clk 0:00:04.7]} 44...
Bc7 {[%clk 0:01:07.9]} 45. a5 {[%clk 0:00:04.8]} 45... Bxg3 {[%clk 0:01:08]} 46.
Ke3 {[%clk 0:00:05.2]} 46... Bf4+ {[%clk 0:01:07]} 47. Kd3 {[%clk 0:00:05.6]}
47... Bg3 {[%clk 0:01:06.7]} 48. Bd4 {[%clk 0:00:05.8]} 48... Bxh4 {[%clk
0:00:59.3]} 49. b5 {[%clk 0:00:05]} 49... Kg3 {[%clk 0:00:48.7]} 50. a6 {[%clk
0:00:04.3]} 50... bxa6 {[%clk 0:00:49.5]} 51. bxa6 {[%clk 0:00:05]} 51... Kg2
{[%clk 0:00:45.2]} 52. a7 {[%clk 0:00:04.8]} 52... Bf2 {[%clk 0:00:45.3]} 53.
Bxf2 {[%clk 0:00:04.6]} 53... Kxf2 {[%clk 0:00:46.2]} 54. a8=Q {[%clk
0:00:05.2]} 54... g5 {[%clk 0:00:45.2]} 55. Qa7+ {[%clk 0:00:03.3]} 55... Kg2
{[%clk 0:00:45.1]} 56. Ke3 {[%clk 0:00:03.2]} 56... g4 {[%clk 0:00:45]} 57. Qb7
{[%clk 0:00:02.8]} 57... h5 {[%clk 0:00:44.2]} 58. Qe4 {[%clk 0:00:03.2]} 58...
Kg3 {[%clk 0:00:43.4]} 59. Qf4+ {[%clk 0:00:03.2]} 59... Kg2 {[%clk 0:00:43.7]}
60. c4 {[%clk 0:00:03.4]} 60... Kh3 {[%clk 0:00:35.2]} 61. c5 {[%clk 0:00:03.6]}
61... h4 {[%clk 0:00:34.5]} 62. c6 {[%clk 0:00:03.7]} 62... g3 {[%clk
0:00:31.2]} 63. Qxf3 {[%clk 0:00:03.7]} 63... Kh2 {[%clk 0:00:30.8]} 64. c7
{[%clk 0:00:03.8]} 64... g2 {[%clk 0:00:30]} 65. Qf2 {[%clk 0:00:04.4]} 65... h3
{[%clk 0:00:29.3]} 66. c8=Q {[%clk 0:00:04.9]} 66... Kh1 {[%clk 0:00:27.2]} 67.
Qc1+ {[%clk 0:00:05.8]} 67... Kh2 {[%clk 0:00:27]} 68. Qcg1# {[%clk 0:00:06.7]}
1-0

[Event "Early-Titled-Tuesday-Blitz-June-18-2024"]
[Site "Chess.com"]
[Date "2024.06.18"]
[Round "5"]
[White "AljoschaFeuerstack"]
[Black "masterofpuppets2"]
[Result "1-0"]
[WhiteElo "2671"]
[BlackElo "2481"]
[TimeControl "180+1"]
[EndTime "8:58:55 PDT"]
[Termination "AljoschaFeuerstack won on time"]

1. e4 {[%clk 0:03:00.9]} 1... c6 {[%clk 0:02:59.4]} 2. d3 {[%clk 0:02:59.7]}
2... d5 {[%clk 0:03:00.3]} 3. Nd2 {[%clk 0:02:59.7]} 3... e5 {[%clk 0:02:59.7]}
4. Ngf3 {[%clk 0:02:59.9]} 4... Bd6 {[%clk 0:03:00]} 5. g3 {[%clk 0:02:59.8]}
5... Nf6 {[%clk 0:02:59.8]} 6. Bg2 {[%clk 0:03:00.3]} 6... O-O {[%clk
0:03:00.4]} 7. O-O {[%clk 0:03:00.2]} 7... Nbd7 {[%clk 0:03:00.4]} 8. Re1 {[%clk
0:02:59.8]} 8... Re8 {[%clk 0:03:00.4]} 9. c3 {[%clk 0:02:56.1]} 9... a5 {[%clk
0:02:54.2]} 10. a4 {[%clk 0:02:53.2]} 10... Qc7 {[%clk 0:02:49.8]} 11. Qc2
{[%clk 0:02:47.3]} 11... b6 {[%clk 0:02:46.5]} 12. Nf1 {[%clk 0:02:38.9]} 12...
Ba6 {[%clk 0:02:41.6]} 13. Bg5 {[%clk 0:02:21.7]} 13... Be7 {[%clk 0:02:10.5]}
14. Rad1 {[%clk 0:01:57.1]} 14... Nc5 {[%clk 0:01:56.9]} 15. exd5 {[%clk
0:01:44.4]} 15... Nxd5 {[%clk 0:01:53.6]} 16. Rxe5 {[%clk 0:01:35.9]} 16... f6
{[%clk 0:01:50.5]} 17. Rxd5 {[%clk 0:01:34.5]} 17... cxd5 {[%clk 0:01:38.1]} 18.
Bf4 {[%clk 0:01:29]} 18... Qd7 {[%clk 0:01:35.9]} 19. b3 {[%clk 0:00:55.3]}
19... Rad8 {[%clk 0:01:28.6]} 20. Nd4 {[%clk 0:00:54.6]} 20... Bf8 {[%clk
0:01:19.8]} 21. h4 {[%clk 0:00:51.6]} 21... Bc8 {[%clk 0:01:15.4]} 22. Ne3
{[%clk 0:00:49.2]} 22... Bb7 {[%clk 0:01:12.4]} 23. Nb5 {[%clk 0:00:43.5]} 23...
Rc8 {[%clk 0:00:51.1]} 24. Na7 {[%clk 0:00:43.2]} 24... Ra8 {[%clk 0:00:49.1]}
25. Nb5 {[%clk 0:00:43.6]} 25... Rac8 {[%clk 0:00:45.2]} 26. Qa2 {[%clk
0:00:43.8]} 26... Kh8 {[%clk 0:00:43.9]} 27. Na7 {[%clk 0:00:36.6]} 27... Rcd8
{[%clk 0:00:43.8]} 28. Nb5 {[%clk 0:00:36.8]} 28... Ne6 {[%clk 0:00:43.2]} 29.
Bh3 {[%clk 0:00:34]} 29... Qf7 {[%clk 0:00:28.5]} 30. Bxe6 {[%clk 0:00:29.3]}
30... Rxe6 {[%clk 0:00:29.4]} 31. Nf5 {[%clk 0:00:25.8]} 31... g6 {[%clk
0:00:27.2]} 32. Nfd4 {[%clk 0:00:26]} 32... Ree8 {[%clk 0:00:26.5]} 33. Bc7
{[%clk 0:00:24.6]} 33... Rc8 {[%clk 0:00:25.5]} 34. Bxb6 {[%clk 0:00:24]} 34...
Bc5 {[%clk 0:00:25.3]} 35. Bxa5 {[%clk 0:00:22.3]} 35... Bc6 {[%clk 0:00:19.5]}
36. Nxc6 {[%clk 0:00:20.8]} 36... Rxc6 {[%clk 0:00:20.4]} 37. d4 {[%clk
0:00:19.9]} 37... Bf8 {[%clk 0:00:18.5]} 38. Qd2 {[%clk 0:00:18.7]} 38... Rce6
{[%clk 0:00:18.4]} 39. Qd3 {[%clk 0:00:16.7]} 39... Re2 {[%clk 0:00:17.2]} 40.
Nc7 {[%clk 0:00:15.8]} 40... R8e7 {[%clk 0:00:15.9]} 41. Qf3 {[%clk 0:00:15.1]}
41... R2e4 {[%clk 0:00:15.1]} 42. Nb5 {[%clk 0:00:14.5]} 42... Bh6 {[%clk
0:00:14.8]} 43. Kg2 {[%clk 0:00:14.7]} 43... Qe6 {[%clk 0:00:14.7]} 44. Nc7
{[%clk 0:00:14.3]} 44... Qd6 {[%clk 0:00:11.8]} 45. c4 {[%clk 0:00:14.4]} 45...
dxc4 {[%clk 0:00:11]} 46. bxc4 {[%clk 0:00:14.3]} 46... Rxd4 {[%clk 0:00:11]}
47. Qa8+ {[%clk 0:00:12.6]} 47... Kg7 {[%clk 0:00:10]} 48. Ne8+ {[%clk
0:00:09.5]} 48... Rxe8 {[%clk 0:00:09.5]} 49. Rxd4 {[%clk 0:00:10.1]} 49... Qxd4
{[%clk 0:00:09]} 50. Qxe8 {[%clk 0:00:09.5]} 50... Qxc4 {[%clk 0:00:09.5]} 51.
Qe7+ {[%clk 0:00:08.5]} 51... Kg8 {[%clk 0:00:05.6]} 52. Bb4 {[%clk 0:00:08]}
52... Qd5+ {[%clk 0:00:05.3]} 53. Kh2 {[%clk 0:00:08.1]} 53... Qc6 {[%clk
0:00:02.4]} 54. Qd8+ {[%clk 0:00:08.3]} 54... Kf7 {[%clk 0:00:02.5]} 55. Qe7+
{[%clk 0:00:08.6]} 55... Kg8 {[%clk 0:00:03.1]} 56. a5 {[%clk 0:00:08.9]} 56...
Bg7 {[%clk 0:00:01.3]} 57. a6 {[%clk 0:00:07.1]} 1-0

[Event "Early-Titled-Tuesday-Blitz-June-18-2024"]
[Site "Chess.com"]
[Date "2024.06.18"]
[Round "5"]
[White "Sondremelaa"]
[Black "KNVB"]
[Result "0-1"]
[WhiteElo "2609"]
[BlackElo "2814"]
[TimeControl "180+1"]
[EndTime "8:58:56 PDT"]
[Termination "KNVB won by resignation"]

1. e4 {[%clk 0:03:00.9]} 1... e5 {[%clk 0:02:59.8]} 2. Nf3 {[%clk 0:03:00.6]}
2... Nc6 {[%clk 0:03:00.3]} 3. Bc4 {[%clk 0:03:00.7]} 3... Nge7 {[%clk
0:03:00.5]} 4. O-O {[%clk 0:02:56.4]} 4... Ng6 {[%clk 0:03:00]} 5. d4 {[%clk
0:02:39.6]} 5... h6 {[%clk 0:03:00.1]} 6. Nc3 {[%clk 0:02:12.8]} 6... d6 {[%clk
0:02:25.9]} 7. h3 {[%clk 0:02:11.8]} 7... Be7 {[%clk 0:02:25.5]} 8. dxe5 {[%clk
0:01:48.9]} 8... Ncxe5 {[%clk 0:02:21.1]} 9. Nxe5 {[%clk 0:01:46.5]} 9... Nxe5
{[%clk 0:02:17]} 10. Bb3 {[%clk 0:01:46.2]} 10... O-O {[%clk 0:02:15.8]} 11. f4
{[%clk 0:01:44.1]} 11... Nc6 {[%clk 0:02:16.1]} 12. Be3 {[%clk 0:01:43.8]} 12...
Be6 {[%clk 0:02:16.3]} 13. Nd5 {[%clk 0:01:42.7]} 13... Na5 {[%clk 0:02:13.3]}
14. f5 {[%clk 0:01:26.9]} 14... Nxb3 {[%clk 0:01:54]} 15. Nxe7+ {[%clk
0:00:55.3]} 15... Qxe7 {[%clk 0:01:34.5]} 16. f6 {[%clk 0:00:47]} 16... Qd8
{[%clk 0:00:18.7]} 17. axb3 {[%clk 0:00:45]} 17... Re8 {[%clk 0:00:18.4]} 18.
Qh5 {[%clk 0:00:38.8]} 18... Bd7 {[%clk 0:00:01.6]} 19. fxg7 {[%clk 0:00:25.4]}
19... f6 {[%clk 0:00:02.2]} 20. Qxh6 {[%clk 0:00:23.4]} 20... Re6 {[%clk
0:00:01.2]} 21. Rf3 {[%clk 0:00:15.7]} 21... Rc8 {[%clk 0:00:01.4]} 22. Rg3
{[%clk 0:00:15.8]} 22... Kf7 {[%clk 0:00:01.1]} 23. Qh5+ {[%clk 0:00:16.1]}
23... Ke7 {[%clk 0:00:01.3]} 24. Rf1 {[%clk 0:00:14.4]} 24... Qg8 {[%clk
0:00:01.4]} 25. Bd4 {[%clk 0:00:14.1]} 25... Re8 {[%clk 0:00:01.1]} 26. Qg6
{[%clk 0:00:13.7]} 26... Kd8 {[%clk 0:00:02]} 27. Bxf6+ {[%clk 0:00:13.4]} 27...
Kc8 {[%clk 0:00:02.7]} 28. Bc3 {[%clk 0:00:13.7]} 28... Rxg6 {[%clk 0:00:03.1]}
29. Rxg6 {[%clk 0:00:13.3]} 29... b6 {[%clk 0:00:02.2]} 30. Rgf6 {[%clk
0:00:13.5]} 30... Qxg7 {[%clk 0:00:02]} 31. Rxd6 {[%clk 0:00:13.8]} 31... Qe7
{[%clk 0:00:01.8]} 32. Rdf6 {[%clk 0:00:13.7]} 32... Qxe4 {[%clk 0:00:02.2]} 33.
Kh2 {[%clk 0:00:12.9]} 33... Bc6 {[%clk 0:00:02.5]} 34. R1f2 {[%clk 0:00:12.8]}
34... Kb7 {[%clk 0:00:02.1]} 35. R6f4 {[%clk 0:00:12.6]} 35... Qd5 {[%clk
0:00:02.4]} 36. Rd4 {[%clk 0:00:12.5]} 36... Qg5 {[%clk 0:00:02.2]} 37. h4
{[%clk 0:00:10.7]} 37... Qh5 {[%clk 0:00:02.3]} 38. Rdf4 {[%clk 0:00:10.8]}
38... Rg8 {[%clk 0:00:02.7]} 39. g3 {[%clk 0:00:11.3]} 39... Qd5 {[%clk
0:00:02.6]} 40. g4 {[%clk 0:00:02.5]} 40... Qh1+ {[%clk 0:00:01.8]} 41. Kg3
{[%clk 0:00:03.4]} 41... Qg1+ {[%clk 0:00:01.5]} 42. Kh3 {[%clk 0:00:04.3]}
42... Qh1+ {[%clk 0:00:01.7]} 43. Kg3 {[%clk 0:00:05.2]} 43... Qg1+ {[%clk
0:00:02]} 44. Kh3 {[%clk 0:00:06.1]} 44... Re8 {[%clk 0:00:02.5]} 45. h5 {[%clk
0:00:05.9]} 45... Re3+ {[%clk 0:00:02.3]} 46. Kh4 {[%clk 0:00:06.8]} 46... Qg3+
{[%clk 0:00:02.6]} 47. Kg5 {[%clk 0:00:07.7]} 47... Re6 {[%clk 0:00:02.2]} 48.
Rf5 {[%clk 0:00:07.4]} 48... Be4 {[%clk 0:00:01.7]} 49. R2f4 {[%clk 0:00:08.3]}
49... Bxf5 {[%clk 0:00:02]} 50. Rxf5 {[%clk 0:00:08.8]} 50... Re4 {[%clk
0:00:02.6]} 51. Kf6 {[%clk 0:00:06.8]} 51... Qxg4 {[%clk 0:00:03.1]} 52. h6
{[%clk 0:00:07.3]} 52... Rf4 {[%clk 0:00:03.5]} 53. Rxf4 {[%clk 0:00:06.7]}
53... Qxf4+ {[%clk 0:00:04.4]} 54. Kg7 {[%clk 0:00:07.4]} 54... Qg5+ {[%clk
0:00:05]} 55. Kh7 {[%clk 0:00:07.7]} 55... Kc6 {[%clk 0:00:05.5]} 56. Bg7 {[%clk
0:00:07.8]} 56... Kd7 {[%clk 0:00:06]} 57. Kg8 {[%clk 0:00:08.7]} 57... Ke8
{[%clk 0:00:04.5]} 58. h7 {[%clk 0:00:09.6]} 58... Qd5+ {[%clk 0:00:04.7]} 59.
Kh8 {[%clk 0:00:09.8]} 59... Kf7 {[%clk 0:00:05.2]} 60. Bf6 {[%clk 0:00:04.3]}
60... Kxf6 {[%clk 0:00:04.7]} 0-1

[Event "Early-Titled-Tuesday-Blitz-June-18-2024"]
[Site "Chess.com"]
[Date "2024.06.18"]
[Round "5"]
[White "Durarbayli"]
[Black "Bigfish1995"]
[Result "1/2-1/2"]
[WhiteElo "2951"]
[BlackElo "3131"]
[TimeControl "180+1"]
[EndTime "8:58:57 PDT"]
[Termination "Game drawn - insufficient material"]

1. e4 {[%clk 0:03:00.9]} 1... d6 {[%clk 0:02:55.3]} 2. d4 {[%clk 0:03:00.3]}
2... g6 {[%clk 0:02:55.7]} 3. Nc3 {[%clk 0:03:00.4]} 3... Bg7 {[%clk 0:02:55.8]}
4. Be3 {[%clk 0:03:01]} 4... a6 {[%clk 0:02:51.3]} 5. g4 {[%clk 0:03:00.8]} 5...
b5 {[%clk 0:02:40]} 6. Bg2 {[%clk 0:03:00.7]} 6... Bb7 {[%clk 0:02:38.7]} 7. h4
{[%clk 0:03:01.2]} 7... b4 {[%clk 0:02:25.1]} 8. Nce2 {[%clk 0:02:55.3]} 8...
Nf6 {[%clk 0:02:22]} 9. g5 {[%clk 0:02:54.5]} 9... Nh5 {[%clk 0:02:16.1]} 10.
Qd2 {[%clk 0:02:43.7]} 10... a5 {[%clk 0:02:14.9]} 11. Bf3 {[%clk 0:02:40.1]}
11... Nd7 {[%clk 0:02:09.7]} 12. Bxh5 {[%clk 0:02:39.5]} 12... gxh5 {[%clk
0:02:09.6]} 13. Ng3 {[%clk 0:02:40.1]} 13... Rg8 {[%clk 0:02:01.2]} 14. f3
{[%clk 0:02:35.8]} 14... c5 {[%clk 0:01:57.6]} 15. Nxh5 {[%clk 0:02:30.5]} 15...
Bh8 {[%clk 0:01:49.2]} 16. Ne2 {[%clk 0:02:11.5]} 16... Qc7 {[%clk 0:01:47.6]}
17. c3 {[%clk 0:01:52.6]} 17... Nb6 {[%clk 0:01:32.4]} 18. b3 {[%clk 0:01:38.5]}
18... bxc3 {[%clk 0:01:27.7]} 19. Nxc3 {[%clk 0:01:33.8]} 19... a4 {[%clk
0:01:22.4]} 20. Rc1 {[%clk 0:01:29.8]} 20... axb3 {[%clk 0:01:18.4]} 21. axb3
{[%clk 0:01:30.7]} 21... Nd7 {[%clk 0:01:14.2]} 22. Nf4 {[%clk 0:01:23.4]} 22...
Qa5 {[%clk 0:01:07.5]} 23. dxc5 {[%clk 0:01:03]} 23... Nxc5 {[%clk 0:00:57.3]}
24. Bxc5 {[%clk 0:00:56.1]} 24... dxc5 {[%clk 0:00:56]} 25. Ncd5 {[%clk
0:00:51.9]} 25... Qd8 {[%clk 0:00:26.8]} 26. Rxc5 {[%clk 0:00:40.1]} 26... Be5
{[%clk 0:00:24.5]} 27. Rc1 {[%clk 0:00:19.4]} 27... e6 {[%clk 0:00:22.1]} 28.
Nf6+ {[%clk 0:00:16.3]} 28... Bxf6 {[%clk 0:00:20.5]} 29. gxf6 {[%clk
0:00:17.2]} 29... Qxf6 {[%clk 0:00:19.4]} 30. Kf2 {[%clk 0:00:15.6]} 30... Qe5
{[%clk 0:00:16.7]} 31. Rhg1 {[%clk 0:00:08.6]} 31... Rxg1 {[%clk 0:00:16.6]} 32.
Kxg1 {[%clk 0:00:09.5]} 32... Rd8 {[%clk 0:00:13.1]} 33. Qe3 {[%clk 0:00:09.4]}
33... Qf6 {[%clk 0:00:13.2]} 34. Ng2 {[%clk 0:00:09.7]} 34... Qb2 {[%clk
0:00:11.4]} 35. Rc7 {[%clk 0:00:08.4]} 35... Rd2 {[%clk 0:00:10.9]} 36. Qg5
{[%clk 0:00:06.4]} 36... Qd4+ {[%clk 0:00:08.5]} 37. Kh2 {[%clk 0:00:04.2]}
37... Qd6+ {[%clk 0:00:08.4]} 38. Qg3 {[%clk 0:00:04.7]} 38... Ba6 {[%clk
0:00:03.3]} 39. Qxd6 {[%clk 0:00:04.4]} 39... Rxd6 {[%clk 0:00:04.2]} 40. Nf4
{[%clk 0:00:05]} 40... Rb6 {[%clk 0:00:03.2]} 41. Rc3 {[%clk 0:00:03.1]} 41...
Ke7 {[%clk 0:00:03.7]} 42. Kg3 {[%clk 0:00:03.3]} 42... Kd6 {[%clk 0:00:03.7]}
43. Nh5 {[%clk 0:00:03.2]} 43... Ke5 {[%clk 0:00:04]} 44. Rc5+ {[%clk
0:00:03.2]} 44... Kd4 {[%clk 0:00:04.5]} 45. Rc7 {[%clk 0:00:03.8]} 45... f5
{[%clk 0:00:04.1]} 46. Rd7+ {[%clk 0:00:03]} 46... Ke5 {[%clk 0:00:03.8]} 47.
exf5 {[%clk 0:00:03.5]} 47... Kxf5 {[%clk 0:00:03.7]} 48. Rxh7 {[%clk
0:00:03.2]} 48... Kg6 {[%clk 0:00:03.1]} 49. Rh8 {[%clk 0:00:03.7]} 49... Rxb3
{[%clk 0:00:03.4]} 50. Nf4+ {[%clk 0:00:04.1]} 50... Kg7 {[%clk 0:00:03.7]} 51.
Ra8 {[%clk 0:00:03.8]} 51... Bb7 {[%clk 0:00:03.1]} 52. Nxe6+ {[%clk 0:00:02.5]}
52... Kf6 {[%clk 0:00:02.2]} 53. Nd4 {[%clk 0:00:03.1]} 53... Rxf3+ {[%clk
0:00:01.5]} 54. Nxf3 {[%clk 0:00:02.8]} 54... Bxa8 {[%clk 0:00:02.4]} 55. Ng5
{[%clk 0:00:03.1]} 55... Kg6 {[%clk 0:00:02.9]} 56. Kg4 {[%clk 0:00:03.6]} 56...
Bb7 {[%clk 0:00:03]} 57. h5+ {[%clk 0:00:04.2]} 57... Kh6 {[%clk 0:00:03.4]} 58.
Nf7+ {[%clk 0:00:04.8]} 58... Kg7 {[%clk 0:00:03.7]} 59. Nd6 {[%clk 0:00:05.7]}
59... Bd5 {[%clk 0:00:03.9]} 60. Kg5 {[%clk 0:00:06.6]} 60... Bf3 {[%clk
0:00:03.7]} 61. h6+ {[%clk 0:00:07.3]} 61... Kh7 {[%clk 0:00:04.3]} 62. Nf7
{[%clk 0:00:07.7]} 62... Bd5 {[%clk 0:00:04.3]} 63. Ne5 {[%clk 0:00:08.6]} 63...
Be6 {[%clk 0:00:04.7]} 64. Ng4 {[%clk 0:00:09.5]} 64... Bxg4 {[%clk 0:00:04.7]}
65. Kxg4 {[%clk 0:00:10.4]} 65... Kxh6 {[%clk 0:00:05.5]} 1/2-1/2

[Event "Early-Titled-Tuesday-Blitz-June-18-2024"]
[Site "Chess.com"]
[Date "2024.06.18"]
[Round "5"]
[White "GiorgianBarbosa"]
[Black "romulocardoso"]
[Result "1-0"]
[WhiteElo "2508"]
[BlackElo "2328"]
[TimeControl "180+1"]
[EndTime "8:58:58 PDT"]
[Termination "GiorgianBarbosa won by checkmate"]

1. d4 {[%clk 0:02:57.9]} 1... Nf6 {[%clk 0:02:26.9]} 2. Nc3 {[%clk 0:02:57.4]}
2... g6 {[%clk 0:02:26.9]} 3. Bg5 {[%clk 0:02:56.4]} 3... Bg7 {[%clk 0:02:25.3]}
4. Nf3 {[%clk 0:02:52.8]} 4... d6 {[%clk 0:02:22.9]} 5. e4 {[%clk 0:02:52.3]}
5... O-O {[%clk 0:02:23]} 6. h4 {[%clk 0:02:50.8]} 6... h5 {[%clk 0:02:22.2]} 7.
Bc4 {[%clk 0:02:48.1]} 7... Bg4 {[%clk 0:02:21.5]} 8. Qd2 {[%clk 0:02:47.2]}
8... c5 {[%clk 0:02:20.6]} 9. d5 {[%clk 0:02:23.7]} 9... a6 {[%clk 0:02:14.8]}
10. a4 {[%clk 0:02:23.2]} 10... Nbd7 {[%clk 0:02:14.8]} 11. Bh6 {[%clk
0:02:19.8]} 11... b5 {[%clk 0:01:46.8]} 12. Bxg7 {[%clk 0:02:15.6]} 12... Kxg7
{[%clk 0:01:46.1]} 13. Be2 {[%clk 0:01:48]} 13... b4 {[%clk 0:01:44.4]} 14. e5
{[%clk 0:01:45.1]} 14... Nxe5 {[%clk 0:01:29]} 15. Nd1 {[%clk 0:01:36.9]} 15...
Nfd7 {[%clk 0:01:01.9]} 16. Ne3 {[%clk 0:01:33.7]} 16... Bxf3 {[%clk 0:01:01.4]}
17. gxf3 {[%clk 0:01:32.3]} 17... f5 {[%clk 0:01:00]} 18. Rg1 {[%clk 0:01:27.2]}
18... f4 {[%clk 0:00:56.5]} 19. Ng2 {[%clk 0:01:23]} 19... Rf5 {[%clk
0:00:27.4]} 20. Nxf4 {[%clk 0:01:20.1]} 20... Kh7 {[%clk 0:00:24.4]} 21. Ne6
{[%clk 0:01:15.8]} 21... Qe8 {[%clk 0:00:21.8]} 22. f4 {[%clk 0:01:04.2]} 22...
Ng4 {[%clk 0:00:16.6]} 23. Bxg4 {[%clk 0:00:56.5]} 23... hxg4 {[%clk 0:00:17.5]}
24. Rxg4 {[%clk 0:00:55.4]} 24... Nf6 {[%clk 0:00:17.9]} 25. Rg5 {[%clk
0:00:55]} 25... Rxg5 {[%clk 0:00:08.3]} 26. hxg5 {[%clk 0:00:49.5]} 26... Nh5
{[%clk 0:00:08.7]} 27. Nc7 {[%clk 0:00:42.8]} 27... Qf8 {[%clk 0:00:08.7]} 28.
Nxa8 {[%clk 0:00:42.9]} 28... Qxa8 {[%clk 0:00:09.6]} 29. f5 {[%clk 0:00:38.4]}
29... gxf5 {[%clk 0:00:09.2]} 30. O-O-O {[%clk 0:00:38.1]} 30... Kg6 {[%clk
0:00:09.6]} 31. Re1 {[%clk 0:00:36.5]} 31... Qb7 {[%clk 0:00:08.2]} 32. Re6+
{[%clk 0:00:35.2]} 32... Kf7 {[%clk 0:00:07.7]} 33. Qd3 {[%clk 0:00:32.1]} 33...
Ng7 {[%clk 0:00:07.6]} 34. Rh6 {[%clk 0:00:23.2]} 34... Qd7 {[%clk 0:00:05.2]}
35. g6+ {[%clk 0:00:18.9]} 35... Kf6 {[%clk 0:00:05.4]} 36. Qh3 {[%clk
0:00:15.8]} 36... Qxa4 {[%clk 0:00:04]} 37. Qh4+ {[%clk 0:00:15.3]} 37... Ke5
{[%clk 0:00:04.5]} 38. Qxe7+ {[%clk 0:00:15.4]} 38... Kxd5 {[%clk 0:00:02.9]}
39. Qxg7 {[%clk 0:00:12.9]} 39... Qa1+ {[%clk 0:00:03.6]} 40. Kd2 {[%clk
0:00:12.9]} 40... Qf1 {[%clk 0:00:04.5]} 41. Qb7+ {[%clk 0:00:12.3]} 41... Kd4
{[%clk 0:00:04.3]} 42. Rh4+ {[%clk 0:00:11.6]} 42... Ke5 {[%clk 0:00:04.9]} 43.
Qe7+ {[%clk 0:00:11.3]} 43... Kd5 {[%clk 0:00:04.9]} 44. Qf7+ {[%clk 0:00:10.6]}
44... Kc6 {[%clk 0:00:03.8]} 45. Qe8+ {[%clk 0:00:11]} 45... Kb6 {[%clk
0:00:03.9]} 46. Qe2 {[%clk 0:00:08.9]} 46... Qg2 {[%clk 0:00:04.5]} 47. Rf4
{[%clk 0:00:07.8]} 47... Qg5 {[%clk 0:00:04.5]} 48. Qe3 {[%clk 0:00:07.6]} 48...
Qxg6 {[%clk 0:00:05.2]} 49. Qf3 {[%clk 0:00:07.3]} 49... Qf6 {[%clk 0:00:04]}
50. Rxf5 {[%clk 0:00:07.9]} 50... Qd4+ {[%clk 0:00:04.5]} 51. Qd3 {[%clk
0:00:07.1]} 51... Qxb2 {[%clk 0:00:05.1]} 52. Qxd6+ {[%clk 0:00:07.1]} 52... Ka5
{[%clk 0:00:05.5]} 53. Qxc5+ {[%clk 0:00:07.4]} 53... Ka4 {[%clk 0:00:06.1]} 54.
Qa5# {[%clk 0:00:07.4]} 1-0